[Event "105th British-ch 2018"]
[Site "Hull"]
[Date "2018.07.28"]
[Round "1"]
[White "Ghasi, Ameet K"]
[Black "Rudd, Jack"]
[Result "0-1"]
[ECO "A05"]
[WhiteElo "2494"]
[BlackElo "2244"]
[Annotator "ChessBase"]
[PlyCount "86"]
[EventDate "2018.07.28"]
[EventType "swiss"]
[EventCountry "GBR"]
[SourceTitle "playchess.com"]
[Source "ChessBase"]
[SourceQuality "1"]
[TimeControl "40/5400+30:1800+30"]

1. Nf3 {[%emt 0:00:23]} Nf6 {[%emt 0:00:12]} 2. g3 {[%emt 0:00:22]} b5 {[%emt 0:00:10]} 3. Bg2 {[%emt 0:00:03]} Bb7 {[%emt 0:00:07]} 4. d3 {[%emt 0:00:05]} e6 {[%emt 0:00:26]} 5. O-O {[%emt 0:00:05]} Be7 {[%emt 0:00:05]} 6. c4 {[%emt 0:00:48]} bxc4 {[%emt 0:00:19]} 7. dxc4 {[%emt 0:00:02]} O-O {[%emt 0:00:10]} 8. Qc2 {[%emt 0:06:26]} Be4 {[%emt 0:02:28]} 9. Qd2 {[%emt 0:01:08]} c6 {[%emt 0:01:06]} 10. Nc3 {[%emt 0:04:35]} d5 {[%emt 0:00:15]} 11. Nxe4 {[%emt 0:07:02]} Nxe4 {[%emt 0:00:11]} 12. Qc2 {[%emt 0:00:31]} Bf6 {[%emt 0:00:39]} 13. Nd2 {[%emt 0:08:35]} Nxd2 {[%emt 0:01:51]} 14. Bxd2 {[%emt 0:00:38]} Qb6 {[%emt 0:00:20]} 15. Rab1 {[%emt 0:18:08]} Nd7 {[%emt 0:00:24]} 16. b3 {[%emt 0:04:01]} g6 {[%emt 0:03:00]} 17. e4 {[%emt 0:06:32]} Rac8 {[%emt 0:02:17]} 18. Be3 {[%emt 0:05:51]} d4 {[%emt 0:01:54]} 19. Bd2 {[%emt 0:00:27]} a5 {[%emt 0:00:29]} 20. Qd1 {[%emt 0:05:52]} Be7 {[%emt 0:01:41]} 21. h4 {[%emt 0:03:53]} Bb4 {[%emt 0:01:55]} 22. Bg5 {[%emt 0:00:25]} Rfe8 {[%emt 0:01:49]} 23. Kh1 {[%emt 0:02:55]} f6 {[%emt 0:00:44]} 24. Bh6 {[%emt 0:01:19]} Ne5 {[%emt 0:01:00]} 25. Bf4 {[%emt 0:02:14]} Rcd8 {[%emt 0:01:12]} 26. Bc1 {[%emt 0:10:08]} h5 {[%emt 0:01:27]} 27. Bh3 {[%emt 0:00:04]} d3 {[%emt 0:00:25]} 28. Be3 {[%emt 0:03:01]} Bc5 {[%emt 0:01:04]} 29. Bxc5 {[%emt 0:00:03]} Qxc5 {[%emt 0:00:10]} 30. f4 {[%emt 0:00:09]} Nf7 {[%emt 0:00:09]} 31. Qd2 {[%emt 0:00:34]} Rd4 {[%emt 0:02:12]} 32. Rbe1 {[%emt 0:00:31]} Nd6 {[%emt 0:01:22]} 33. Bg2 {[%emt 0:07:27]} f5 {[%emt 0:02:40]} 34. e5 {[%emt 0:00:11]} Ne4 {[%emt 0:00:07]} 35. Bxe4 {[%emt 0:00:16]} fxe4 {[%emt 0:00:06]} 36. Re3 {[%emt 0:02:52]} a4 {[%emt 0:01:51]} 37. Rfe1 {[%emt 0:00:36]} axb3 {[%emt 0:00:14]} 38. axb3 {[%emt 0:00:01]} Rb8 {[%emt 0:00:21]} 39. Rxe4 {[%emt 0:01:09]} Rxb3 {[%emt 0:00:10]} 40. Rxd4 {[%emt 0:00:26]} Qxd4 {[%emt 0:00:07]} 41. f5 {[%emt 0:05:40]} Qc3 {[%emt 0:01:58]} 42. Qf2 {[%emt 0:04:30]} Rb2 {[%emt 0:01:08]} 43. Qe3 {[%emt 0:00:31]} Qc2 {[%emt 0:00:40]} 0-1

[Event "105th British-ch 2018"]
[Site "Hull"]
[Date "2018.07.28"]
[Round "1"]
[White "Emms, John M"]
[Black "Moore, Graham J"]
[Result "1/2-1/2"]
[ECO "C07"]
[WhiteElo "2488"]
[BlackElo "2218"]
[Annotator "ChessBase"]
[PlyCount "80"]
[EventDate "2018.07.28"]
[EventType "swiss"]
[EventCountry "GBR"]
[SourceTitle "playchess.com"]
[Source "ChessBase"]
[SourceQuality "1"]
[TimeControl "40/5400+30:1800+30"]

1. e4 {[%emt 0:00:19]} e6 {[%emt 0:00:22]} 2. d4 {[%emt 0:00:07]} d5 {[%emt 0:00:05]} 3. Nd2 {[%emt 0:00:38]} c5 {[%emt 0:00:37]} 4. exd5 {[%emt 0:01:51]} Qxd5 {[%emt 0:00:11]} 5. Ngf3 {[%emt 0:04:35]} cxd4 {[%emt 0:00:13]} 6. Bc4 {[%emt 0:00:15]} Qd6 {[%emt 0:00:10]} 7. O-O {[%emt 0:01:36]} Nf6 {[%emt 0:00:11]} 8. Nb3 {[%emt 0:00:45]} Nc6 {[%emt 0:00:14]} 9. Nbxd4 {[%emt 0:11:43]} Nxd4 {[%emt 0:01:22]} 10. Nxd4 {[%emt 0:00:04]} a6 {[%emt 0:00:08]} 11. Re1 {[%emt 0:04:15]} Qc7 {[%emt 0:00:13]} 12. Bd3 {[%emt 0:04:10]} Bd6 {[%emt 0:07:04]} 13. h3 {[%emt 0:12:15]} O-O {[%emt 0:05:41]} 14. Bg5 {[%emt 0:08:01]} Nd5 {[%emt 0:10:59]} 15. Qh5 {[%emt 0:12:38]} g6 {[%emt 0:00:36]} 16. Qh4 {[%emt 0:07:10]} Bh2+ {[%emt 0:02:23]} 17. Kh1 {[%emt 0:00:35]} Bf4 {[%emt 0:00:16]} 18. Be4 {[%emt 0:12:49]} Bxg5 {[%emt 0:14:40]} 19. Qxg5 {[%emt 0:00:01]} Nf4 {[%emt 0:05:33]} 20. Ne2 {[%emt 0:04:39]} Nh5 {[%emt 0:17:27]} 21. Bf3 {[%emt 0:01:15]} Ng7 {[%emt 0:02:43]} 22. Rad1 {[%emt 0:04:50]} Bd7 {[%emt 0:05:23]} 23. Nc3 {[%emt 0:00:42]} f6 {[%emt 0:02:50]} 24. Qh4 {[%emt 0:02:09]} f5 {[%emt 0:09:08]} 25. Qb4 {[%emt 0:01:17]} Rab8 {[%emt 0:06:24]} 26. Qd6 {[%emt 0:01:40]} Qxd6 {[%emt 0:00:17]} 27. Rxd6 {[%emt 0:00:01]} Be8 {[%emt 0:04:28]} 28. Kg1 {[%emt 0:00:49]} Rf7 {[%emt 0:00:44]} 29. Red1 {[%emt 0:01:03]} Rc7 {[%emt 0:00:16]} 30. Rd8 {[%emt 0:00:54]} Rxd8 {[%emt 0:00:31]} 31. Rxd8 {[%emt 0:00:02]} Kf7 {[%emt 0:00:45]} 32. a3 {[%emt 0:00:35]} Bd7 {[%emt 0:02:39]} 33. g4 {[%emt 0:00:53]} Ne8 {[%emt 0:00:24]} 34. gxf5 {[%emt 0:01:18]} gxf5 {[%emt 0:00:14]} 35. Rb8 {[%emt 0:00:25]} Nd6 {[%emt 0:00:56]} 36. Rh8 {[%emt 0:00:45]} Kg7 {[%emt 0:00:04]} 37. Rd8 {[%emt 0:00:15]} Nf7 {[%emt 0:00:26]} 38. Rb8 {[%emt 0:00:13]} Nd6 {[%emt 0:00:09]} 39. Rd8 {[%emt 0:00:48]} Nf7 {[%emt 0:00:04]} 40. Rb8 {[%emt 0:00:06]} Nd6 {[%emt 0:00:05]} 1/2-1/2

[Event "105th British-ch 2018"]
[Site "Hull"]
[Date "2018.07.28"]
[Round "1"]
[White "Ward, Chris G"]
[Black "Payne, Matthew J"]
[Result "0-1"]
[ECO "E70"]
[WhiteElo "2434"]
[BlackElo "2113"]
[Annotator "NA"]
[PlyCount "116"]
[EventDate "2018.07.28"]
[EventType "swiss"]
[EventCountry "GBR"]
[SourceTitle "playchess.com"]
[Source "ChessBase"]
[SourceQuality "1"]
[TimeControl "40/5400+30:1800+30"]

1. d4 {[%emt 0:00:02]} Nf6 {[%emt 0:00:14]} 2. c4 {[%emt 0:00:07]} g6 {[%emt 0:00:14]} 3. Nc3 {[%emt 0:00:05]} Bg7 {[%emt 0:00:12]} 4. e4 {[%emt 0:00:06]} d6 {[%emt 0:00:14]} 5. Nge2 {[%emt 0:00:10]} O-O {[%emt 0:00:23]} 6. Ng3 {[%emt 0:00:09]} e5 {[%emt 0:00:27]} 7. d5 {[%emt 0:00:12]} a5 {[%emt 0:00:38]} 8. Be2 {[%emt 0:00:51]} Na6 {[%emt 0:00:52]} 9. h4 {[%emt 0:00:37]} h5 {[%emt 0:01:17]} 10. Bg5 {[%emt 0:01:07]} Qe8 {[%emt 0:01:05]} 11. Qd2 {[%emt 0:17:10]} Nh7 {[%emt 0:05:34]} 12. Bh6 {[%emt 0:08:24]} Qe7 {[%emt 0:04:29]} 13. O-O-O {[%emt 0:09:25]} Bxh6 {[%emt 0:15:05]} 14. Qxh6 {[%emt 0:00:53]} Qf6 {[%emt 0:00:13]} 15. Bf3 {[%emt 0:13:00]} Nc5 {[%emt 0:11:05]} 16. Qe3 {[%emt 0:04:10]} Re8 {[%emt 0:08:59]} 17. Nge2 {[%emt 0:09:57]} a4 {[%emt 0:12:35]} 18. Kb1 {[%emt 0:07:37]} b6 {[%emt 0:06:35]} 19. Nb5 {[%emt 0:01:15]} Re7 {[%emt 0:01:00]} 20. Nec3 {[%emt 0:00:19]} Qg7 {[%emt 0:05:28]} 21. Ka1 {[%emt 0:10:33]} f5 {[%emt 0:05:13]} 22. exf5 {[%emt 0:01:45]} gxf5 {[%emt 0:06:23]} 23. Bxh5 {[%emt 0:01:30]} f4 {[%emt 0:00:09]} 24. Qd2 {[%emt 0:06:26]} Bf5 {[%emt 0:00:50]} 25. g4 {[%emt 0:00:48]} Bd3 {[%emt 0:01:39]} 26. g5 {[%emt 0:00:03]} e4 {[%emt 0:01:43]} 27. Na3 {[%emt 0:02:45]} e3 {[%emt 0:05:00]} 28. fxe3 {[%emt 0:00:10]} fxe3 {[%emt 0:00:08]} 29. Qg2 {[%emt 0:01:16]} Rf8 {[%emt 0:03:06]} 30. Rhe1 {[%emt 0:00:58]} Rf2 {[%emt 0:01:01]} 31. Qh3 {[%emt 0:00:28]} Bf5 {[%emt 0:00:52]} 32. Qg3 {[%emt 0:01:00]} Nd3 {[%emt 0:02:13]} 33. Rxe3 {[%emt 0:00:41]} Rxe3 {[%emt 0:00:33]} 34. Qxe3 {[%emt 0:00:17]} Nxb2 {[%emt 0:00:17]} 35. Rd2 {[%emt 0:02:31]} Nd3 {[%emt 0:00:54]} 36. Rxd3 {[%emt 0:00:09]} Bxd3 {[%emt 0:00:30]} 37. Qxd3 {[%emt 0:00:44]} Nf8 {[%emt 0:00:38]} 38. Nab1 {[%emt 0:00:58]} Qe5 {[%emt 0:00:41]} 39. Bg4 {[%emt 0:00:30]} Rf4 {[%emt 0:00:52]} 40. Be6+ {[%emt 0:00:31]} Kg7 {[%emt 0:00:21]} 41. Qg3 {[%emt 0:10:09]} Rxc4 {[%emt 0:04:07]} 42. Qf3 {[%emt 0:07:42]} Nxe6 {[%emt 0:01:57]} 43. dxe6 {[%emt 0:00:08]} Qxe6 {[%emt 0:00:11]} 44. h5 {[%emt 0:00:15]} b5 {[%emt 0:03:12]} 45. h6+ {[%emt 0:07:15]} Kg6 {[%emt 0:00:57]} 46. Qf8 {[%emt 0:01:12]} Qf7 {[%emt 0:01:15]} 47. Qh8 {[%emt 0:02:59]} Rh4 {[%emt 0:01:55]} 48. Nxb5 {[%emt 0:00:54]} Rh2 {[%emt 0:00:44]} 49. N5c3 {[%emt 0:02:18]} Kxg5 {[%emt 0:04:51]} 50. Qg7+ {[%emt 0:00:21]} Qg6 {[%emt 0:00:08]} 51. Qxc7 {[%emt 0:01:37]} Kxh6 {[%emt 0:00:41]} 52. Qb8 {[%emt 0:00:43]} Qf6 {[%emt 0:00:30]} 53. Qb4 {[%emt 0:00:35]} Rh4 {[%emt 0:00:21]} 54. Qb6 {[%emt 0:00:29]} Qd4 {[%emt 0:03:52]} 55. Qd8 {[%emt 0:00:40]} Rh3 {[%emt 0:00:18]} 56. Qf8+ {[%emt 0:00:10]} Kg5 {[%emt 0:00:15]} 57. Qe7+ {[%emt 0:00:12]} Qf6 {[%emt 0:00:26]} 58. Qxf6+ {[%emt 0:01:17]} Kxf6 {[%emt 0:01:52]} 0-1

[Event "105th British-ch 2018"]
[Site "Hull"]
[Date "2018.07.28"]
[Round "1"]
[White "Hebden, Mark L"]
[Black "Jarmany, John"]
[Result "1-0"]
[ECO "D12"]
[WhiteElo "2423"]
[BlackElo "2110"]
[Annotator "NA"]
[PlyCount "127"]
[EventDate "2018.07.28"]
[EventType "swiss"]
[EventCountry "GBR"]
[SourceTitle "playchess.com"]
[Source "ChessBase"]
[SourceQuality "1"]
[TimeControl "40/5400+30:1800+30"]

1. d4 {[%emt 0:00:08]} d5 {[%emt 0:00:04]} 2. Nf3 {[%emt 0:00:26]} Nf6 {[%emt 0:00:08]} 3. c4 {[%emt 0:00:46]} c6 {[%emt 0:00:09]} 4. e3 {[%emt 0:00:17]} Bf5 {[%emt 0:00:26]} 5. Nc3 {[%emt 0:00:19]} e6 {[%emt 0:00:22]} 6. Nh4 {[%emt 0:00:26]} Bg6 {[%emt 0:00:17]} 7. Be2 {[%emt 0:00:09]} Nbd7 {[%emt 0:01:26]} 8. O-O {[%emt 0:05:56]} Bd6 {[%emt 0:09:42]} 9. g3 {[%emt 0:00:23]} Ne4 {[%emt 0:11:58]} 10. Qb3 {[%emt 0:10:24]} Qc7 {[%emt 0:18:30]} 11. Nxg6 {[%emt 0:14:10]} hxg6 {[%emt 0:00:14]} 12. Nxe4 {[%emt 0:02:29]} dxe4 {[%emt 0:00:12]} 13. Bd2 {[%emt 0:02:22]} c5 {[%emt 0:16:42]} 14. Kg2 {[%emt 0:01:31]} g5 {[%emt 0:03:57]} 15. f3 {[%emt 0:04:39]} Nf6 {[%emt 0:03:47]} 16. Qb5+ {[%emt 0:02:23]} Ke7 {[%emt 0:09:30]} 17. dxc5 {[%emt 0:01:12]} Bxc5 {[%emt 0:00:08]} 18. b4 {[%emt 0:00:44]} Bd6 {[%emt 0:00:05]} 19. Bc3 {[%emt 0:06:11]} Kf8 {[%emt 0:00:55]} 20. f4 {[%emt 0:03:57]} gxf4 {[%emt 0:04:02]} 21. exf4 {[%emt 0:01:21]} a6 {[%emt 0:01:06]} 22. Qg5 {[%emt 0:02:09]} Rh6 {[%emt 0:00:54]} 23. Rad1 {[%emt 0:03:27]} Rg6 {[%emt 0:01:16]} 24. Be5 {[%emt 0:01:18]} Bxe5 {[%emt 0:05:33]} 25. Qxe5 {[%emt 0:00:09]} Qb6 {[%emt 0:02:36]} 26. Qd6+ {[%emt 0:07:51]} Qxd6 {[%emt 0:00:02]} 27. Rxd6 {[%emt 0:00:07]} b5 {[%emt 0:05:49]} 28. Rc1 {[%emt 0:13:00]} bxc4 {[%emt 0:01:30]} 29. Rxc4 {[%emt 0:00:20]} Nd5 {[%emt 0:00:21]} 30. Rxe4 {[%emt 0:01:59]} Nc3 {[%emt 0:02:26]} 31. Re5 {[%emt 0:01:27]} Nxa2 {[%emt 0:00:32]} 32. Rb6 {[%emt 0:00:19]} Nc3 {[%emt 0:00:29]} 33. Rxa6 {[%emt 0:02:16]} Rxa6 {[%emt 0:00:11]} 34. Bxa6 {[%emt 0:00:05]} Nd5 {[%emt 0:00:14]} 35. f5 {[%emt 0:05:19]} Rg5 {[%emt 0:01:20]} 36. Bb7 {[%emt 0:03:13]} Nxb4 {[%emt 0:01:07]} 37. Re4 {[%emt 0:00:14]} Nd3 {[%emt 0:00:17]} 38. fxe6 {[%emt 0:00:09]} fxe6 {[%emt 0:00:17]} 39. h4 {[%emt 0:00:24]} Rg6 {[%emt 0:00:49]} 40. Bc8 {[%emt 0:01:04]} Ke7 {[%emt 0:00:35]} 41. Re3 {[%emt 0:01:09]} Nc5 {[%emt 0:00:37]} 42. Kh3 {[%emt 0:00:14]} Kd6 {[%emt 0:07:24]} 43. Ra3 {[%emt 0:01:14]} Rf6 {[%emt 0:01:43]} 44. Ba6 {[%emt 0:00:18]} e5 {[%emt 0:02:22]} 45. Bc4 {[%emt 0:00:11]} e4 {[%emt 0:00:59]} 46. h5 {[%emt 0:00:45]} Ke5 {[%emt 0:00:58]} 47. Ra7 {[%emt 0:00:37]} Kd4 {[%emt 0:00:04]} 48. Be2 {[%emt 0:00:35]} Ne6 {[%emt 0:04:08]} 49. Bg4 {[%emt 0:02:22]} e3 {[%emt 0:00:08]} 50. Rd7+ {[%emt 0:01:56]} Ke5 {[%emt 0:04:27]} 51. Kg2 {[%emt 0:01:27]} Ke4 {[%emt 0:09:57]} 52. Bxe6 {[%emt 0:17:34]} Rxe6 {[%emt 0:00:02]} 53. Rxg7 {[%emt 0:00:13]} e2 {[%emt 0:03:37]} 54. Kf2 {[%emt 0:00:29]} Kf5 {[%emt 0:00:40]} 55. Ke1 {[%emt 0:01:19]} Rh6 {[%emt 0:00:24]} 56. g4+ {[%emt 0:00:16]} Kf6 {[%emt 0:00:26]} 57. Rg8 {[%emt 0:00:40]} Kf7 {[%emt 0:00:23]} 58. Ra8 {[%emt 0:03:58]} Re6 {[%emt 0:00:05]} 59. g5 {[%emt 0:01:04]} Re5 {[%emt 0:00:43]} 60. g6+ {[%emt 0:01:22]} Kf6 {[%emt 0:01:08]} 61. Rf8+ {[%emt 0:00:30]} Kg7 {[%emt 0:00:22]} 62. Rf7+ {[%emt 0:00:11]} Kh6 {[%emt 0:00:40]} 63. Rh7+ {[%emt 0:00:13]} Kg5 {[%emt 0:00:02]} 64. g7 {[%emt 0:00:11]} 1-0

[Event "105th British-ch 2018"]
[Site "Hull"]
[Date "2018.07.28"]
[Round "1"]
[White "Arkell, Keith C"]
[Black "Krzyzanowski, Patryk"]
[Result "1-0"]
[ECO "E11"]
[WhiteElo "2406"]
[BlackElo "2087"]
[Annotator "NA"]
[PlyCount "123"]
[EventDate "2018.07.28"]
[EventType "swiss"]
[EventCountry "GBR"]
[SourceTitle "playchess.com"]
[Source "ChessBase"]
[SourceQuality "1"]
[TimeControl "40/5400+30:1800+30"]

1. d4 {[%emt 0:00:02]} Nf6 {[%emt 0:00:35]} 2. Nf3 {[%emt 0:00:05]} e6 {[%emt 0:00:54]} 3. c4 {[%emt 0:00:10]} Bb4+ {[%emt 0:00:16]} 4. Bd2 {[%emt 0:00:04]} Qe7 {[%emt 0:00:20]} 5. g3 {[%emt 0:00:06]} Ne4 {[%emt 0:03:31]} 6. Bg2 {[%emt 0:00:41]} Nxd2 {[%emt 0:00:15]} 7. Nbxd2 {[%emt 0:00:04]} c5 {[%emt 0:09:11]} 8. a3 {[%emt 0:00:22]} Bxd2+ {[%emt 0:02:58]} 9. Qxd2 {[%emt 0:05:09]} d6 {[%emt 0:02:28]} 10. O-O {[%emt 0:01:05]} e5 {[%emt 0:01:24]} 11. e3 {[%emt 0:01:19]} e4 {[%emt 0:02:17]} 12. Ne1 {[%emt 0:00:08]} O-O {[%emt 0:01:09]} 13. b4 {[%emt 0:01:15]} b6 {[%emt 0:04:30]} 14. Nd3 {[%emt 0:01:12]} Ba6 {[%emt 0:04:11]} 15. b5 {[%emt 0:00:17]} Bb7 {[%emt 0:01:32]} 16. Nf4 {[%emt 0:00:07]} Nd7 {[%emt 0:03:07]} 17. Rfd1 {[%emt 0:00:50]} g5 {[%emt 0:01:05]} 18. Nh5 {[%emt 0:05:31]} Rad8 {[%emt 0:02:27]} 19. Qe2 {[%emt 0:09:35]} f5 {[%emt 0:00:55]} 20. Rd2 {[%emt 0:00:50]} cxd4 {[%emt 0:12:36]} 21. exd4 {[%emt 0:00:32]} Qf7 {[%emt 0:05:39]} 22. g4 {[%emt 0:05:06]} Nf6 {[%emt 0:09:21]} 23. Nxf6+ {[%emt 0:00:28]} Qxf6 {[%emt 0:00:05]} 24. gxf5 {[%emt 0:00:34]} Qxf5 {[%emt 0:01:02]} 25. d5 {[%emt 0:00:32]} Qe5 {[%emt 0:10:36]} 26. Re1 {[%emt 0:00:29]} Rf4 {[%emt 0:00:13]} 27. Qe3 {[%emt 0:02:02]} Rh4 {[%emt 0:05:23]} 28. Qg3 {[%emt 0:01:29]} Qxg3 {[%emt 0:01:33]} 29. hxg3 {[%emt 0:00:13]} e3 {[%emt 0:01:15]} 30. Rxe3 {[%emt 0:00:15]} Rxc4 {[%emt 0:00:34]} 31. Re7 {[%emt 0:00:06]} Bc8 {[%emt 0:02:52]} 32. Rxa7 {[%emt 0:00:30]} Rd7 {[%emt 0:00:08]} 33. Ra8 {[%emt 0:00:08]} Kf7 {[%emt 0:00:44]} 34. Re2 {[%emt 0:07:55]} Re7 {[%emt 0:06:23]} 35. Rxe7+ {[%emt 0:01:16]} Kxe7 {[%emt 0:00:07]} 36. Rb8 {[%emt 0:00:55]} Bd7 {[%emt 0:02:18]} 37. Rxb6 {[%emt 0:00:09]} Ra4 {[%emt 0:00:51]} 38. Rb7 {[%emt 0:01:44]} Kd8 {[%emt 0:01:03]} 39. b6 {[%emt 0:00:48]} Rxa3 {[%emt 0:00:38]} 40. Rb8+ {[%emt 0:00:25]} Ke7 {[%emt 0:00:11]} 41. Rh8 {[%emt 0:07:35]} Rb3 {[%emt 0:03:51]} 42. Bh3 {[%emt 0:01:16]} Bxh3 {[%emt 0:13:53]} 43. b7 {[%emt 0:01:22]} Kf6 {[%emt 0:00:06]} 44. b8=Q {[%emt 0:00:18]} Rxb8 {[%emt 0:00:06]} 45. Rxb8 {[%emt 0:00:06]} Bf5 {[%emt 0:08:34]} 46. Re8 {[%emt 0:00:54]} Kf7 {[%emt 0:00:53]} 47. Re1 {[%emt 0:00:54]} Bc8 {[%emt 0:01:17]} 48. Rc1 {[%emt 0:02:31]} Bf5 {[%emt 0:00:56]} 49. Rc6 {[%emt 0:00:31]} Ke7 {[%emt 0:00:09]} 50. f3 {[%emt 0:00:05]} Bb1 {[%emt 0:02:51]} 51. Kf2 {[%emt 0:00:27]} h5 {[%emt 0:00:59]} 52. Ke3 {[%emt 0:00:38]} h4 {[%emt 0:00:19]} 53. Rb6 {[%emt 0:03:13]} Bf5 {[%emt 0:03:57]} 54. g4 {[%emt 0:00:22]} Bc2 {[%emt 0:00:10]} 55. Rb2 {[%emt 0:00:49]} Bd1 {[%emt 0:00:32]} 56. Rd2 {[%emt 0:01:51]} Ba4 {[%emt 0:00:43]} 57. Kd4 {[%emt 0:04:49]} Kf7 {[%emt 0:00:39]} 58. Ra2 {[%emt 0:01:23]} Bd1 {[%emt 0:00:16]} 59. Ra1 {[%emt 0:00:18]} Be2 {[%emt 0:00:47]} 60. Re1 {[%emt 0:00:07]} Bb5 {[%emt 0:01:02]} 61. Re6 {[%emt 0:02:27]} Kg7 {[%emt 0:02:01]} 62. Ke3 {[%emt 0:00:29]} 1-0

[Event "105th British-ch 2018"]
[Site "Hull"]
[Date "2018.07.28"]
[Round "1"]
[White "Trent, Lawrence"]
[Black "Anderton, David W"]
[Result "1-0"]
[ECO "C04"]
[WhiteElo "2406"]
[BlackElo "2084"]
[Annotator "NA"]
[PlyCount "71"]
[EventDate "2018.07.28"]
[EventType "swiss"]
[EventCountry "GBR"]
[SourceTitle "playchess.com"]
[Source "ChessBase"]
[SourceQuality "1"]
[TimeControl "40/5400+30:1800+30"]

1. e4 {[%emt 0:00:01]} e6 {[%emt 0:00:07]} 2. d4 {[%emt 0:00:04]} d5 {[%emt 0:00:05]} 3. Nd2 {[%emt 0:00:04]} Nc6 {[%emt 0:00:06]} 4. Ngf3 {[%emt 0:00:59]} Nf6 {[%emt 0:00:08]} 5. e5 {[%emt 0:00:03]} Nd7 {[%emt 0:00:06]} 6. Nb3 {[%emt 0:00:03]} Be7 {[%emt 0:00:21]} 7. Bf4 {[%emt 0:02:45]} O-O {[%emt 0:03:43]} 8. Bb5 {[%emt 0:00:42]} a5 {[%emt 0:01:02]} 9. a4 {[%emt 0:00:08]} Na7 {[%emt 0:05:40]} 10. Bd3 {[%emt 0:03:00]} b6 {[%emt 0:00:20]} 11. h4 {[%emt 0:01:20]} f5 {[%emt 0:30:29]} 12. Ng5 {[%emt 0:08:28]} Bxg5 {[%emt 0:03:26]} 13. hxg5 {[%emt 0:02:54]} g6 {[%emt 0:00:15]} 14. c4 {[%emt 0:19:17]} Qe7 {[%emt 0:07:54]} 15. cxd5 {[%emt 0:10:14]} exd5 {[%emt 0:00:08]} 16. O-O {[%emt 0:00:30]} Qe6 {[%emt 0:05:05]} 17. Rc1 {[%emt 0:12:58]} c6 {[%emt 0:00:16]} 18. Rc3 {[%emt 0:00:03]} Bb7 {[%emt 0:00:43]} 19. Nc1 {[%emt 0:00:37]} c5 {[%emt 0:03:48]} 20. Ne2 {[%emt 0:00:15]} Nc6 {[%emt 0:02:29]} 21. Bb5 {[%emt 0:02:17]} Rfd8 {[%emt 0:13:12]} 22. Be3 {[%emt 0:13:30]} Qe7 {[%emt 0:10:51]} 23. Re1 {[%emt 0:06:55]} Nxd4 {[%emt 0:01:17]} 24. Bxd4 {[%emt 0:01:09]} cxd4 {[%emt 0:00:09]} 25. Rc7 {[%emt 0:00:03]} Ba6 {[%emt 0:01:37]} 26. Nxd4 {[%emt 0:04:46]} Bxb5 {[%emt 0:00:32]} 27. axb5 {[%emt 0:00:14]} Rdc8 {[%emt 0:00:46]} 28. Qb3 {[%emt 0:00:26]} Rxc7 {[%emt 0:04:52]} 29. Qxd5+ {[%emt 0:00:05]} Kh8 {[%emt 0:01:32]} 30. Qxa8+ {[%emt 0:00:06]} Qf8 {[%emt 0:00:20]} 31. Qxf8+ {[%emt 0:00:31]} Nxf8 {[%emt 0:00:07]} 32. e6 {[%emt 0:00:02]} Re7 {[%emt 0:00:15]} 33. Rc1 {[%emt 0:01:12]} Nxe6 {[%emt 0:00:25]} 34. Re1 {[%emt 0:00:06]} Nxd4 {[%emt 0:00:41]} 35. Rxe7 {[%emt 0:00:02]} Nxb5 {[%emt 0:00:11]} 36. Rb7 {[%emt 0:00:08]} 1-0

[Event "105th British-ch 2018"]
[Site "Hull"]
[Date "2018.07.28"]
[Round "1"]
[White "Macklin, Paul"]
[Black "Pollack, Oscar"]
[Result "1/2-1/2"]
[ECO "B22"]
[WhiteElo "2363"]
[BlackElo "2064"]
[Annotator "NA"]
[PlyCount "55"]
[EventDate "2018.07.28"]
[EventType "swiss"]
[EventCountry "GBR"]
[SourceTitle "playchess.com"]
[Source "ChessBase"]
[SourceQuality "1"]
[TimeControl "40/5400+30:1800+30"]

1. e4 {[%emt 0:00:01]} e6 {[%emt 0:00:07]} 2. d4 {[%emt 0:00:20]} d5 {[%emt 0:00:04]} 3. Nd2 {[%emt 0:01:06]} Nf6 {[%emt 0:00:16]} 4. Bd3 {[%emt 0:01:03]} c5 {[%emt 0:02:25]} 5. c3 {[%emt 0:00:16]} Nc6 {[%emt 0:02:00]} 6. Ngf3 {[%emt 0:00:32]} cxd4 {[%emt 0:03:34]} 7. cxd4 {[%emt 0:01:14]} dxe4 {[%emt 0:00:21]} 8. Nxe4 {[%emt 0:00:14]} Bb4+ {[%emt 0:00:28]} 9. Nc3 {[%emt 0:06:36]} O-O {[%emt 0:02:51]} 10. O-O {[%emt 0:00:15]} b6 {[%emt 0:03:11]} 11. Ne4 {[%emt 0:15:55]} Nd5 {[%emt 0:10:50]} 12. a3 {[%emt 0:05:45]} Be7 {[%emt 0:01:32]} 13. Re1 {[%emt 0:00:44]} Bb7 {[%emt 0:01:30]} 14. Bb1 {[%emt 0:02:27]} Qc7 {[%emt 0:06:52]} 15. Qd3 {[%emt 0:05:28]} g6 {[%emt 0:00:56]} 16. Bh6 {[%emt 0:01:41]} Rfd8 {[%emt 0:01:18]} 17. Ba2 {[%emt 0:00:19]} Bf8 {[%emt 0:07:41]} 18. Bxf8 {[%emt 0:13:27]} Kxf8 {[%emt 0:01:52]} 19. Bxd5 {[%emt 0:00:39]} Rxd5 {[%emt 0:04:54]} 20. Nf6 {[%emt 0:10:08]} Rf5 {[%emt 0:00:51]} 21. Nxh7+ {[%emt 0:00:12]} Kg7 {[%emt 0:00:48]} 22. Nhg5 {[%emt 0:00:07]} Rh8 {[%emt 0:02:44]} 23. h4 {[%emt 0:00:05]} Ne7 {[%emt 0:05:14]} 24. Rac1 {[%emt 0:04:30]} Qf4 {[%emt 0:02:44]} 25. d5 {[%emt 0:00:17]} Nxd5 {[%emt 0:01:50]} 26. Rc4 {[%emt 0:02:15]} Qb8 {[%emt 0:04:20]} 27. Qd4+ {[%emt 0:05:43]} Kg8 {[%emt 0:01:18]} 28. g3 {[%emt 0:05:27]} 1/2-1/2

[Event "105th British-ch 2018"]
[Site "Hull"]
[Date "2018.07.28"]
[Round "1"]
[White "Bradbury, Neil H"]
[Black "Thurlow, Kevin J"]
[Result "1-0"]
[ECO "E12"]
[WhiteElo "2348"]
[BlackElo "2030"]
[Annotator "NA"]
[PlyCount "43"]
[EventDate "2018.07.28"]
[EventType "swiss"]
[EventCountry "GBR"]
[SourceTitle "playchess.com"]
[Source "ChessBase"]
[SourceQuality "1"]
[TimeControl "40/5400+30:1800+30"]

1. d4 {[%emt 0:00:03]} Nf6 {[%emt 0:00:12]} 2. c4 {[%emt 0:00:12]} e6 {[%emt 0:00:06]} 3. Nf3 {[%emt 0:00:17]} b6 {[%emt 0:00:09]} 4. a3 {[%emt 0:01:25]} Bb7 {[%emt 0:00:10]} 5. Nc3 {[%emt 0:00:54]} d5 {[%emt 0:00:16]} 6. cxd5 {[%emt 0:03:28]} exd5 {[%emt 0:00:15]} 7. g3 {[%emt 0:00:58]} Be7 {[%emt 0:03:12]} 8. Bg2 {[%emt 0:02:18]} O-O {[%emt 0:00:12]} 9. O-O {[%emt 0:00:05]} Nbd7 {[%emt 0:00:22]} 10. b4 {[%emt 0:02:35]} Ne4 {[%emt 0:07:50]} 11. Nxe4 {[%emt 0:09:25]} dxe4 {[%emt 0:02:01]} 12. Nd2 {[%emt 0:00:07]} f5 {[%emt 0:03:43]} 13. Bb2 {[%emt 0:04:01]} Bd5 {[%emt 0:04:27]} 14. Rc1 {[%emt 0:01:10]} c5 {[%emt 0:02:32]} 15. dxc5 {[%emt 0:06:32]} bxc5 {[%emt 0:01:12]} 16. Nb3 {[%emt 0:00:14]} Bxb3 {[%emt 0:02:27]} 17. Qxb3+ {[%emt 0:00:11]} Kh8 {[%emt 0:00:07]} 18. Rfd1 {[%emt 0:00:33]} Qc7 {[%emt 0:08:06]} 19. Qe6 {[%emt 0:04:19]} Nf6 {[%emt 0:04:11]} 20. Be5 {[%emt 0:01:16]} Qb7 {[%emt 0:02:41]} 21. bxc5 {[%emt 0:00:46]} Rae8 {[%emt 0:01:55]} 22. Qxf5 {[%emt 0:04:14]} 1-0